bitfinex/quotes_SOLUSD_20230112
["timestamp","ask_amount","ask_price","bid_price","bid_amount"]
[1673530230869,123.1536374,15.691,15.645,366.58177271]
[1673530231078,47.8,15.69,15.645,366.58177271]
[1673530231295,133.63200608,15.69,15.645,366.58177271]
[1673530231497,110.47252234,15.689,15.645,366.58177271]
[1673530231688,47.81,15.688,15.645,322.90515387]
[1673530231896,139.99506963,15.688,15.645,322.90515387]
[1673530232112,86.04135467,15.687,15.645,279.86234196]
[1673530232329,47.82,15.686,15.645,279.86234196]
[1673530232551,126.5495311,15.686,15.645,221.55964492]
[1673530232866,81.27701743,15.685,15.645,218.36364492]
[1673530233068,67.82,15.684,15.645,218.36364492]
[1673530233392,139.9757537,15.684,15.645,218.36364492]
[1673530233597,48.90249481,15.683,15.645,218.36364492]
[1673530233806,47.83,15.682,15.645,218.36364492]
[1673530234002,47.82,15.685,15.645,218.36364492]
[1673530234432,40.75236148,15.684,15.645,218.36364492]
[1673530234743,127.94310868,15.683,15.645,15.52723865]
[1673530234962,127.94310868,15.683,15.641,167.2205655]
[1673530235282,86.88131618,15.682,15.641,34.96132998]
[1673530235488,35.32208878,15.633,15.562,675.20600387]
[1673530235687,20.0,15.654,15.624,46.23986598]
[1673530236014,37.22829973,15.68,15.624,459.70455248]
[1673530236224,47.84,15.679,15.624,459.70455248]
[1673530236425,74.26734841,15.679,15.624,459.20455248]
[1673530236633,69.77229103,15.678,15.624,420.8271426]
[1673530236833,47.84,15.677,15.624,420.8271426]
[1673530237047,105.17698586,15.677,15.624,420.8271426]
[1673530237358,105.17698586,15.677,15.624,380.92600206]
[1673530237359,53.40058586,15.676,15.624,380.92600206]
[1673530237566,47.85,15.675,15.624,380.92600206]
[1673530237780,111.69054907,15.675,15.624,306.77978066]
[1673530238008,68.80496477,15.674,15.624,306.77978066]
[1673530238233,47.85,15.673,15.624,306.77978066]
[1673530238558,47.85,15.673,15.624,271.73602076]
[1673530238559,76.42182584,15.673,15.624,271.73602076]
[1673530238947,63.58454812,15.672,15.624,271.73602076]
[1673530239156,47.86,15.671,15.624,271.73602076]
[1673530239369,121.98496911,15.671,15.624,271.73602076]
[1673530239576,81.6875275,15.67,15.624,227.07960475]
[1673530239795,47.87,15.669,15.597,38.49424189]
[1673530240011,42.96354862,15.622,15.597,38.49424189]
[1673530240214,97.77012801,15.622,15.621,93.868404]
[1673530240416,86.84665482,15.621,15.597,38.49424189]
[1673530240625,48.02,15.62,15.597,294.5139675]
[1673530241048,83.65641829,15.62,15.597,192.60247244]
[1673530241266,116.0947982,15.619,15.597,192.60247244]
[1673530241477,48.02,15.618,15.597,192.60247244]
[1673530241678,32.8994281,15.618,15.597,192.60247244]
[1673530241891,48.03,15.617,15.597,153.32832325]
[1673530242106,48.03,15.617,15.584,25.641521]
[1673530242107,33.05475208,15.597,15.584,25.641521]
[1673530242314,37.22176671,15.616,15.584,25.641521]
[1673530242524,48.03,15.615,15.584,25.641521]
[1673530242729,0.00794546,15.59,15.584,25.641521]
[1673530243477,0.00794546,15.59,15.584,62.9810254]
[1673530243692,46.86895599,15.615,15.584,62.9810254]
[1673530243889,69.16915239,15.584,15.558,33.0]
[1673530244106,0.00915239,15.584,15.558,33.0]
[1673530244305,46.86895599,15.615,15.566,0.96]
[1673530244516,0.00043718,15.592,15.566,88.6118583]
[1673530244724,0.00043718,15.592,15.565,132.1638262]
[1673530244725,0.00782767,15.584,15.567,77.6518583]
[1673530244937,0.00782767,15.584,15.567,53.6118583]
[1673530245144,0.00782767,15.584,15.565,132.1638262]
[1673530245378,31.32128116,15.59,15.565,132.1638262]
[1673530245569,47.87,15.667,15.567,19.90716]
[1673530245784,175.09722334,15.666,15.567,19.90716]
[1673530245996,47.88,15.665,15.567,19.90716]
[1673530246203,174.69146591,15.664,15.567,19.90716]
[1673530246416,47.89,15.663,15.565,132.1638262]
[1673530246630,61.66710664,15.663,15.565,132.1638262]
[1673530246844,11.2746933,15.662,15.565,132.1638262]
[1673530247044,47.89,15.661,15.566,54.8526207]
[1673530247580,53.64123381,15.66,15.566,38.94739892]
[1673530247899,113.56821913,15.659,15.566,38.94739892]
[1673530248214,34.26623337,15.658,15.566,38.94739892]
[1673530248419,47.9,15.657,15.566,38.94739892]
[1673530248737,43.71290004,15.656,15.565,132.1638262]
[1673530248935,47.91,15.655,15.565,132.1638262]
[1673530249139,47.91,15.655,15.566,64.10050903]
[1673530249366,41.11290004,15.654,15.566,64.10050903]
[1673530249572,47.92,15.653,15.567,74.09598892]
[1673530249779,173.74146591,15.652,15.567,74.09598892]
[1673530249994,47.92,15.651,15.568,73.05598891]
[1673530250430,47.92,15.651,15.569,95.59077931]
[1673530250616,173.74146591,15.652,15.57,20.0]
[1673530250834,0.01007011,15.654,15.57,123.59069233]
[1673530251045,46.30193325,15.651,15.571,158.46459131]
[1673530251466,0.00591683,15.67,15.572,116.96786619]
[1673530251685,0.00591683,15.67,15.573,48.16]
[1673530251878,0.00591683,15.67,15.573,161.56177457]
[1673530252094,0.00591683,15.67,15.574,78.41468677]
[1673530252300,4.017,15.709,15.575,48.16]
[1673530252516,1.32,15.73,15.578,20.0]
[1673530252720,18.35023,15.708,15.588,20.0]
[1673530252940,286.09888292,15.737,15.598,20.0]
[1673530252941,4.803,15.736,15.598,20.0]
[1673530253151,4.803,15.736,15.608,20.0]
[1673530253373,0.00982284,15.708,15.609,48.05]
[1673530253580,1.32,15.72,15.61,20.0]
[1673530253905,287.96265848,15.761,15.611,48.04]
[1673530254210,23.59086488,15.76,15.618,20.0]
[1673530254429,282.11135162,15.749,15.628,20.0]
[1673530254628,36.70269153,15.747,15.629,47.99]
[1673530254948,36.70269153,15.747,15.63,20.0]
[1673530255150,76.94606488,15.746,15.631,47.98]
[1673530255348,36.70269153,15.747,15.632,20.0]
[1673530255559,24.80028965,15.746,15.633,47.98]
[1673530255769,41.03290874,15.746,15.634,20.0]
[1673530255979,0.96,15.746,15.635,47.97]
[1673530256319,47.64,15.745,15.636,19.5]
[1673530256501,34.23014605,15.745,15.637,47.96]
[1673530256718,0.96,15.744,15.637,86.85897335]
[1673530256934,34.23014605,15.745,15.637,86.85897335]
[1673530257144,283.58565648,15.814,15.638,41.72430668]
[1673530257359,283.58565648,15.814,15.639,47.96]
[1673530257578,285.67280034,15.812,15.639,116.72200243]
[1673530257769,37.26036466,15.813,15.64,97.76366925]
[1673530257985,333.10280034,15.812,15.641,47.95]
[1673530258303,281.41341704,15.815,15.717,20.0]
[1673530258516,287.41547216,15.869,15.718,47.72]
[1673530258719,25.293883,15.863,15.719,20.0]
[1673530258933,25.293883,15.863,15.72,47.71]
[1673530259136,47.28,15.862,15.737,20.0]
[1673530259347,86.75652096,15.862,15.738,47.66]
[1673530259567,24.38122318,15.861,15.739,20.0]
[1673530259783,47.29,15.86,15.74,47.65]
[1673530259998,63.52967807,15.86,15.741,20.0]
[1673530260308,46.52812931,15.859,15.742,47.64]
[1673530260499,47.3,15.858,15.743,20.0]
[1673530260716,107.78052849,15.858,15.744,47.64]
[1673530260925,107.78052849,15.858,15.745,20.0]
[1673530260926,73.99421825,15.857,15.745,20.0]
[1673530261136,73.99421825,15.857,15.747,20.0]
[1673530261358,119.84862952,15.856,15.748,67.63]
[1673530261670,29.40330474,15.855,15.748,67.63]
[1673530261864,47.31,15.854,15.748,67.63]
[1673530262070,96.10261913,15.854,15.749,1250.0]
[1673530262284,70.27147054,15.853,15.75,67.62]
[1673530262715,83.49966387,15.852,15.75,67.62]
[1673530263043,41.80678294,15.856,15.75,67.62]
[1673530263044,133.93966387,15.851,15.75,67.62]
[1673530263249,20.0,15.85,15.75,67.62]
[1673530263467,47.32,15.849,15.75,66.66]
[1673530263683,137.74860415,15.849,15.75,66.66]
[1673530263993,88.33993748,15.848,15.75,66.66]
[1673530264177,47.33,15.847,15.751,20.0]
[1673530264389,0.96,15.808,15.752,47.61]
[1673530264599,36.69148945,15.846,15.752,47.61]
[1673530264810,47.34,15.845,15.752,47.61]
[1673530265020,29.85044502,15.845,15.752,47.61]
[1673530265251,29.85044502,15.844,15.754,20.0]
[1673530265450,47.28,15.862,15.755,67.61]
[1673530265661,25.293883,15.863,15.755,110.93443886]
[1673530265868,25.87157836,15.855,15.755,67.61]
[1673530266066,47.31,15.854,15.755,67.61]
[1673530266281,38.27227356,15.854,15.756,63.38087621]
[1673530266488,36.22916212,15.855,15.757,67.6]
[1673530266725,38.17042421,15.853,15.757,47.6]
[1673530267032,86.14645291,15.852,15.757,47.6]
[1673530267247,20.0,15.851,15.757,90.98087621]
[1673530267455,47.32,15.85,15.757,90.98087621]
[1673530267770,1.06864467,15.848,15.757,43.38087621]
[1673530267957,47.33,15.847,15.64,101.7069246]
[1673530268168,20.0,15.845,15.625,102.61297717]
[1673530268402,47.34,15.844,15.642,102.99344627]
[1673530268589,38.45982786,15.844,15.644,103.74884637]
[1673530268802,34.97747202,15.844,15.646,105.19765826]
[1673530269013,34.97747202,15.844,15.645,2180.71918766]
[1673530269014,42.90270773,15.849,15.648,108.69139111]
[1673530269241,42.90270773,15.849,15.65,101.11538561]
[1673530269448,47.17,15.901,15.652,106.57027125]
[1673530269664,47.17,15.901,15.756,20.0]
[1673530269864,47.23,15.879,15.757,47.6]
[1673530270062,37.82714365,15.879,15.758,40.0]
[1673530270270,41.00038326,15.884,15.759,47.59]
[1673530270588,147.74341464,15.868,15.767,20.0]
[1673530270813,25.23628,15.871,15.768,47.57]
[1673530271029,25.23628,15.871,15.77,20.0]
[1673530271225,25.23628,15.871,15.771,47.56]
[1673530271425,25.23628,15.871,15.771,80.60271939]
[1673530271641,47.26,15.87,15.772,41.22466987]
[1673530271848,25.23628,15.871,15.773,47.55]
[1673530272063,7.17409,15.868,15.774,20.0]
[1673530272277,7.17409,15.868,15.775,47.55]
[1673530272584,7.17409,15.868,15.775,84.67471939]
[1673530272793,7.17409,15.868,15.79,1.31]
[1673530273119,0.0018064,15.88,15.792,20.0]
[1673530273320,7.17409,15.866,15.793,67.49]
[1673530273537,0.0018064,15.88,15.793,154.48339661]
[1673530273748,0.0018064,15.88,15.82,1.31]
[1673530273960,0.0031699,15.903,15.866,7.17409]
[1673530274287,0.004822,15.908,15.867,47.27]
[1673530274498,0.004822,15.908,15.867,104.39755301]
[1673530274685,0.0062274,15.917,15.868,38.55376945]
[1673530274898,46.98,15.964,15.869,64.26]
[1673530274899,0.0155724,15.922,15.869,64.26]
[1673530275122,0.0155724,15.922,15.87,40.0]
[1673530275322,0.0155724,15.922,15.87,20.0]
[1673530275751,49.62983658,15.921,15.846,41.51770033]
[1673530275963,47.11,15.92,15.869,33.98106278]
[1673530276170,47.11,15.92,15.848,20.0]
[1673530276171,20.0,15.919,15.849,47.32]
[1673530276384,47.12,15.918,15.849,47.32]
[1673530276698,20.0,15.917,15.848,20.0]
[1673530276918,47.12,15.916,15.848,20.0]
[1673530277111,40.0,15.915,15.848,20.0]
[1673530277449,64.13,15.914,15.859,120.0]
[1673530277637,41.99173039,15.917,15.86,47.29]
[1673530277848,41.99173039,15.917,15.87,120.0]
[1673530278059,0.00173039,15.917,15.872,20.0]
[1673530278395,0.0155724,15.922,15.873,67.25]
[1673530278589,44.97139474,15.916,15.872,20.0]
[1673530278795,47.13,15.915,15.872,20.0]
[1673530278999,20.0,15.914,15.872,20.0]
[1673530279233,103.38643278,15.914,15.872,20.0]
[1673530279421,44.97139474,15.913,15.883,120.0]
[1673530279638,67.14,15.912,15.848,20.0]
[1673530279958,39.61247444,15.88,15.85,1.31]
[1673530280175,84.23,15.879,15.85,1.31]
[1673530280490,81.54154557,15.879,15.778,20.0]
[1673530280702,133.97277794,15.878,15.778,20.0]
[1673530280919,37.0,15.877,15.795,32.88694457]
[1673530281226,67.24,15.876,15.796,67.48]
[1673530281433,37.0,15.875,15.796,67.48]
[1673530281646,47.25,15.874,15.796,67.48]
[1673530281848,17.0,15.873,15.796,67.48]
[1673530282062,20.0,15.871,15.797,32.6702779]
[1673530282272,84.26,15.87,15.798,47.48]
[1673530282484,34.30456571,15.872,15.798,47.48]
[1673530282679,45.21555927,15.875,15.799,33.04233313]
[1673530282889,45.21555927,15.875,15.801,20.0]
[1673530283109,47.15,15.907,15.802,47.46]
[1673530283334,41.60050963,15.881,15.802,80.50233313]
[1673530283524,41.60050963,15.881,15.804,7.30097]
[1673530283733,74.77456571,15.88,15.805,47.45]
[1673530283968,20.0,15.879,15.807,7.29958]
[1673530284179,47.24,15.878,15.808,47.45]
[1673530284398,123.31320396,15.878,15.81,7.2982]
[1673530284697,20.0,15.877,15.811,47.44]
[1673530284906,20.0,15.878,15.813,20.0]
[1673530285218,42.26889382,15.88,15.814,55.68635]
[1673530285432,47.15,15.907,15.816,7.29543]
[1673530285623,47.15,15.907,15.817,68.38]
[1673530285833,47.15,15.907,15.819,7.29405]
[1673530286045,47.14,15.912,15.82,68.37]
[1673530286274,45.32600554,15.914,15.822,7.29266]
[1673530286470,45.32600554,15.914,15.823,65.36]
[1673530286471,44.01600554,15.914,15.823,65.36]
[1673530286682,44.01600554,15.914,15.825,7.29128]
[1673530286907,47.11,15.921,15.827,20.0]
[1673530287115,20.0,15.934,15.829,7.28944]
[1673530287311,47.07,15.933,15.83,47.38]
[1673530287528,47.07,15.934,15.832,7.28806]
[1673530287742,47.07,15.934,15.833,84.37]
[1673530288059,32.61175835,15.928,15.835,7.28668]
[1673530288268,62.47767509,15.956,15.836,64.36]
[1673530288475,62.47767509,15.956,15.838,8.06026436]
[1673530288689,25.14501,15.926,15.84,7.28438]
[1673530289013,25.14501,15.926,15.842,20.0]
[1673530289317,25.14501,15.926,15.844,7.28254]
[1673530289642,25.14501,15.926,15.845,116.3520676]
[1673530289845,25.14501,15.926,15.848,20.0]
[1673530290051,25.14501,15.926,15.85,7.27978]
[1673530290264,25.14501,15.926,15.851,67.32]
[1673530290454,25.14501,15.926,15.853,7.2784]
[1673530290676,25.14501,15.926,15.854,67.31]
[1673530290888,18.45587318,15.926,15.856,27.27703]
[1673530291110,18.45587318,15.926,15.858,7.27611]
[1673530291318,0.0111421,15.968,15.927,18.45587318]
[1673530291534,1.32,15.97,15.932,12.86972429]
[1673530291535,0.0111421,15.97,15.932,12.86972429]
[1673530291743,0.0111421,15.97,15.933,71.31186]
[1673530291938,20.0,16.023,15.97,1.32]
[1673530292162,20.0,16.023,15.934,27.2414]
[1673530292163,46.81,16.022,15.971,7.22463]
[1673530292356,1.32,15.966,15.934,91.34469185]
[1673530292568,54.15409,15.965,15.934,44.17105065]
[1673530292787,7.17409,15.964,15.934,44.17105065]
[1673530293015,1.32,15.97,15.86,47.29]
[1673530293325,46.88,15.999,15.928,27.639501]
[1673530293512,7.17409,15.997,15.929,7.24368]
[1673530293936,20.0,15.995,15.929,7.24368]
[1673530294154,54.06409,15.994,15.929,39.75326733]
[1673530294375,7.17409,15.992,15.93,30.58238067]
[1673530294689,46.9,15.991,15.931,7.24277]
[1673530294890,20.0,15.99,15.931,7.24277]
[1673530295097,46.91,15.989,15.931,49.15334973]
[1673530295307,46.91,15.989,15.931,7.24277]
[1673530295518,32.73226303,15.988,15.931,38.03082254]
[1673530295740,7.17409,15.986,15.931,38.03082254]
[1673530295955,66.92,15.985,15.932,7.24231]
[1673530296160,27.17409,15.984,15.932,7.24231]
[1673530296368,66.92,15.985,15.932,7.24231]
[1673530296369,54.10409,15.983,15.932,7.24231]
[1673530296563,7.17409,15.982,15.933,86.00471921]
[1673530296768,46.93,15.981,15.934,7.2414]
[1673530296995,7.17409,15.98,15.934,7.2414]
[1673530297312,46.94,15.979,15.934,7.2414]
[1673530297516,7.17409,15.978,15.934,7.2414]
[1673530297727,46.94,15.977,15.934,7.2414]
[1673530297934,7.17409,15.975,15.928,33.68707326]
[1673530298160,46.95,15.974,15.892,47.2]
[1673530298357,7.17409,15.973,15.894,7.25963]
[1673530298682,285.5213441,16.05,15.924,50.02798892]
[1673530298880,144.0,18.369,15.926,7.24504]
[1673530298881,20.0,16.001,15.926,7.24504]
[1673530299080,7.17409,15.989,15.927,47.09]
[1673530299291,7.17409,15.989,15.929,7.24368]
[1673530299510,29.0,15.994,15.93,47.08]
[1673530299710,20.0,15.993,15.933,20.0]
[1673530299921,27.17409,15.993,15.934,54.3114]
[1673530300147,7.17409,15.992,15.935,27.24095]
[1673530300474,7.17409,15.992,15.936,54.3005]
[1673530300475,46.9,15.991,15.936,54.3005]
[1673530300670,7.17409,15.99,15.937,27.24004]
[1673530300874,20.0,15.995,15.939,7.23913]
[1673530301085,7.17409,15.994,15.94,67.05]
[1673530301296,46.9,15.993,15.941,7.23822]
[1673530301513,46.9,15.993,15.942,47.05]
[1673530301712,20.0,15.992,15.944,20.0]
[1673530301921,20.0,15.992,15.945,74.27641]
[1673530302131,46.9,15.991,15.946,7.23595]
[1673530302359,54.07409,15.991,15.947,47.03]
[1673530302560,54.07409,15.991,15.946,7.23595]
[1673530302561,7.17409,15.99,15.948,7.23505]
[1673530302886,20.0,15.988,15.948,69.44708574]
[1673530303216,29.16,15.987,15.949,54.26459]
[1673530303522,7.17409,15.986,15.948,20.0]
[1673530303837,20.0,15.988,15.949,7.23459]
[1673530304019,27.17409,15.988,15.95,20.0]
[1673530304233,20.0,15.988,15.951,54.25369]
[1673530304443,29.16,15.987,15.952,7.23323]
[1673530304655,20.0,15.986,15.952,7.23323]
[1673530304979,7.17409,15.985,15.92,20.0]
[1673530305307,46.16,15.984,15.946,43.60416892]
[1673530305520,24.17409,15.984,15.946,43.60416892]
[1673530305713,29.16,15.983,15.939,52.78621574]
[1673530305917,37.0,15.982,15.94,7.23868]
[1673530306136,36.29409,15.981,15.92,20.0]
[1673530306339,24.17409,15.98,15.921,54.35732]
[1673530306544,36.29409,15.979,15.94,1.31]
[1673530306859,44.17409,15.978,15.94,1.31]
[1673530307088,27.17409,15.977,15.94,1.31]
[1673530307293,17.0,15.976,15.941,47.05]
[1673530307491,17.0,15.976,15.942,27.23777]
[1673530307697,20.0,15.975,15.942,7.23777]
[1673530307907,20.0,15.975,15.941,47.05]
[1673530308130,20.0,15.975,15.94,1.31]
[1673530308346,29.13,15.974,15.921,47.11]
[1673530308561,20.0,15.975,15.922,41.02083016]
[1673530308775,29.13,15.974,15.923,54.34641]
[1673530308965,29.13,15.974,15.924,8.20595]
[1673530309175,20.0,15.975,15.925,74.3455]
[1673530309386,20.0,15.975,15.926,8.20504]
[1673530309604,20.0,15.973,15.928,20.0]
[1673530309808,20.0,15.973,15.929,55.29368]
[1673530310031,20.0,15.973,15.93,7.24322]
[1673530310226,20.0,15.973,15.931,47.08]
[1673530310432,67.24975703,15.972,15.931,47.08]
[1673530310668,20.0,15.973,15.932,20.0]
[1673530310877,29.08,15.972,15.932,20.0]
[1673530311061,27.17409,15.971,15.932,20.0]
[1673530311275,36.25409,15.97,15.926,39.06621558]
[1673530311494,44.17409,15.969,15.914,47.13]
[1673530311705,7.17409,15.967,15.927,13.94710906]
[1673530311920,20.0,15.966,15.928,48.05]
[1673530312115,20.0,15.968,15.928,48.05]
[1673530312116,62.39334559,15.998,15.929,7.24368]
[1673530312331,59.89931096,15.999,15.931,20.0]
[1673530312655,17.3418064,16.002,15.966,20.0]
[1673530312858,29.07,15.994,15.967,7.22644]
[1673530313069,29.07,15.994,15.935,47.07]
[1673530313266,29.07,15.994,15.937,7.24004]
[1673530313486,63.83602879,15.994,15.938,67.06]
[1673530313693,20.0,15.993,15.939,27.23913]
[1673530314013,20.0,15.993,15.94,97.49229907]
[1673530314226,29.07,15.992,15.942,7.23777]
[1673530314421,29.07,15.992,15.943,47.04]
[1673530314635,20.0,15.991,15.945,20.0]
[1673530314844,25.052369,15.996,15.946,54.27595]
[1673530315056,25.052369,15.996,15.947,20.0]
[1673530315280,25.052369,15.996,15.949,0.73081223]
[1673530315492,25.052369,15.996,15.95,54.25414]
[1673530315708,25.052369,15.996,15.951,47.96450223]
[1673530315916,25.052369,15.996,15.953,7.23278]
[1673530316126,25.052369,15.996,15.954,67.01]
[1673530316339,25.052369,15.996,15.956,7.23142]
[1673530316529,25.052369,15.996,15.958,20.0]
[1673530316743,25.052369,15.996,15.959,74.23006]
[1673530316961,25.052369,15.996,15.96,7.22961]
[1673530317264,25.052369,15.996,15.961,66.99]
[1673530317477,25.052369,15.996,15.962,7.2287]
[1673530317812,25.052369,15.996,15.963,86.99]
[1673530318020,25.052369,15.996,15.964,7.2278]
[1673530318219,0.002369,15.996,15.965,66.98]
[1673530318430,0.002369,15.996,15.966,7.22689]
[1673530318651,0.002369,15.996,15.968,20.0]
[1673530318850,20.0,16.019,15.969,74.19553]
[1673530319063,20.0,16.019,15.97,7.22508]
[1673530319285,0.0018064,16.002,15.971,46.96]
[1673530319475,0.0018064,16.002,15.973,20.0]
[1673530319690,0.0018064,16.002,15.974,74.17327]
[1673530319911,0.0018064,16.002,15.975,7.22282]
[1673530320224,20.0,16.028,15.976,66.95]
[1673530320427,20.0,16.028,15.978,7.22146]
[1673530320639,20.0,16.028,15.979,66.94]
[1673530320846,24.976315,16.037,15.981,7.22011]
[1673530321061,24.976315,16.037,15.982,46.93]
[1673530321274,46.65,16.028,15.982,46.93]
[1673530321599,20.0,16.023,15.983,7.2192]
[1673530321998,46.66,16.022,15.983,7.2192]
[1673530322320,17.0,16.021,15.983,7.2192]
[1673530322520,20.0,16.02,15.983,7.2192]
[1673530322856,37.0,16.019,15.983,7.2192]
[1673530323061,46.68,16.018,15.952,47.02]
[1673530323378,20.0,16.016,15.954,7.23233]
[1673530323574,90.85409,16.015,15.954,7.23233]
[1673530323788,7.17409,16.014,15.954,7.23233]
[1673530324122,66.35,16.013,15.954,7.23233]
[1673530324441,7.17409,16.012,15.954,7.23233]
[1673530324641,66.36,16.011,15.952,0.01229643]
[1673530324844,7.17409,16.009,15.919,7.24823]
[1673530325061,46.37,16.008,15.92,47.11]
[1673530325377,7.17409,16.007,15.922,7.24686]
[1673530325591,66.37,16.006,15.923,67.1]
[1673530325782,147.21306694,16.006,15.925,7.2455]
[1673530325998,68.01715694,16.005,15.926,47.09]
[1673530326207,73.55409,16.004,15.928,4.74413]
[1673530326423,24.17409,16.003,15.928,4.74413]
[1673530326638,93.55409,16.002,15.928,4.74413]
[1673530326848,7.17409,16.0,15.928,4.74413]
[1673530327055,66.22,15.999,15.928,4.74413]
[1673530327252,7.17409,15.997,15.929,7.24368]
[1673530327458,6.98458,15.927,15.84,47.35]
[1673530327672,6.98458,15.927,15.808,396.1]
[1673530327673,63.44,15.926,15.854,40.37231625]
[1673530327881,17.0,15.926,15.856,7.27703]
[1673530328084,17.0,15.926,15.857,48.26]
[1673530328330,63.43,15.927,15.859,7.27565]
[1673530328539,17.0,15.927,15.86,68.25]
[1673530328849,46.44,15.926,15.862,7.27427]
[1673530329064,17.0,15.927,15.863,48.24]
[1673530329272,17.0,15.927,15.865,7.2729]
[1673530329489,17.0,15.927,15.867,20.0]
[1673530329701,20.0,15.926,15.869,7.27107]
[1673530329910,17.0,15.925,15.87,47.26]
[1673530330132,27.17409,15.924,15.871,7.27015]
[1673530330337,70.45409,15.923,15.872,47.25]
[1673530330555,20.0,15.922,15.873,7.26923]
[1673530330740,63.28,15.921,15.873,7.26923]
[1673530330952,20.0,15.92,15.873,7.26923]
[1673530331167,63.29,15.919,15.873,7.26923]
[1673530331383,20.0,15.917,15.873,7.26923]
[1673530331582,83.3,15.916,15.873,7.26923]
[1673530331793,102.44496728,15.916,15.873,7.26923]
[1673530332023,19.14496728,15.915,15.873,7.26923]
[1673530332334,46.3,15.914,15.873,7.26923]
[1673530332649,20.0,15.969,15.874,47.25]
[1673530332874,7.17409,15.967,15.875,7.26832]
[1673530333054,46.84986821,15.966,15.876,47.24]
[1673530333391,7.17409,15.964,15.877,7.2674]
[1673530333582,66.16,15.963,15.878,67.24]
[1673530333786,91.31281159,15.963,15.878,67.24]
[1673530334010,7.17409,15.961,15.878,102.46837956]
[1673530334226,46.17,15.96,15.879,7.26649]
[1673530334540,7.17409,15.958,15.88,47.23]
[1673530334730,46.18,15.957,15.879,47.23]
[1673530334940,7.17409,15.955,15.879,47.23]
[1673530335150,0.7001635,15.953,15.879,47.23]
[1673530335358,20.0,15.95,15.845,20.0]
[1673530335572,7.17409,15.94,15.846,54.61162]
[1673530335782,46.23,15.939,15.846,47.33]
[1673530336016,7.17409,15.937,15.847,31.73571289]
[1673530336207,66.24,15.936,15.848,47.33]
[1673530336416,7.17409,15.934,15.849,20.0]
[1673530336754,94.89547826,15.933,15.85,54.59978]
[1673530336958,7.17409,15.931,15.851,7.27932]
[1673530337151,83.26,15.93,15.852,47.31]
[1673530337355,20.0,15.927,15.853,20.0]
[1673530337583,7.17409,15.925,15.854,47.31]
[1673530337796,66.28,15.924,15.854,79.04571289]
[1673530337995,7.17409,15.922,15.854,109.04529394]
[1673530338220,66.29,15.921,15.855,31.73571289]
[1673530338412,7.17409,15.919,15.856,74.57703]
[1673530338743,20.0,15.918,15.857,20.0]
[1673530339058,7.17409,15.916,15.858,47.3]
[1673530339269,66.22,15.915,15.859,20.0]
[1673530339474,20.0,15.914,15.852,47.31]
[1673530339672,20.0,15.914,15.801,20.0]
[1673530339673,63.22,15.913,15.822,47.4]
[1673530339895,7.17409,15.911,15.848,57.72600433]
[1673530340096,83.23,15.91,15.849,47.32]
[1673530340312,7.17409,15.908,15.849,47.32]
[1673530340516,66.24,15.907,15.85,0.96]
[1673530340731,7.17409,15.905,15.851,47.32]
[1673530340937,7.17409,15.905,15.825,105.47267099]
[1673530340938,66.25,15.904,15.825,105.47267099]
[1673530341151,24.17409,15.903,15.827,7.29036]
[1673530341371,53.42409,15.902,15.828,47.39]